bitfinex-derivatives/quotes_BTCF0:USTF0_20241019
["timestamp","ask_amount","ask_price","bid_price","bid_amount"]
[1729310157849,0.46015517,68510.0,68508.0,0.0319]
[1729310157850,0.072986,68509.0,68508.0,0.0319]
[1729310159949,0.072986,68509.0,68508.0,0.10471412]
[1729310160443,0.072986,68509.0,68508.0,0.0319]
[1729310165157,0.072986,68509.0,68508.0,0.11333491]
[1729310166256,0.072986,68509.0,68508.0,0.20076879]
[1729310166453,0.072986,68509.0,68508.0,0.11333491]
[1729310166651,0.072986,68509.0,68508.0,0.2008589]
[1729310167460,0.072986,68509.0,68508.0,0.11333491]
[1729310168858,0.072986,68509.0,68508.0,0.2008687]
[1729310169063,0.072986,68509.0,68508.0,0.11333491]
[1729310169364,0.072986,68509.0,68508.0,0.2008681]
[1729310169557,0.072986,68509.0,68508.0,0.11333491]
[1729310175461,0.072986,68509.0,68508.0,0.11355678]
[1729310178477,0.433786,68509.0,68508.0,0.11355678]
[1729310180373,0.433786,68509.0,68508.0,0.11358481]
[1729310181469,0.433786,68509.0,68508.0,0.21092502]
[1729310184261,0.433786,68509.0,68508.0,0.2109167]
[1729310185174,0.433786,68509.0,68508.0,0.21079934]
[1729310185473,0.433786,68509.0,68508.0,0.11351609]
[1729310185790,0.433786,68509.0,68508.0,0.2108337]
[1729310186570,0.433786,68509.0,68508.0,0.11351609]
[1729310187070,0.433786,68509.0,68508.0,0.21083525]
[1729310187673,0.433786,68509.0,68508.0,0.11351609]
[1729310187869,0.433786,68509.0,68508.0,0.21083736]
[1729310192669,0.433786,68509.0,68508.0,0.11351609]
[1729310195379,0.433786,68509.0,68508.0,0.0319]
[1729310195380,0.48613865,68509.0,68508.0,0.0319]
[1729310196273,0.48604534,68509.0,68508.0,0.0319]
[1729310198683,0.48604534,68509.0,68508.0,0.00956713]
[1729310202286,0.433786,68509.0,68508.0,0.00956713]
[1729310202482,0.433786,68509.0,68508.0,0.09146642]
[1729310203187,0.433786,68509.0,68508.0,0.08189929]
[1729310203485,0.433786,68509.0,68508.0,0.16950981]
[1729310204778,0.433786,68509.0,68508.0,0.08189929]
[1729310205282,0.072986,68509.0,68508.0,0.16950808]
[1729310205473,0.433786,68509.0,68508.0,0.16950808]
[1729310206578,0.433786,68509.0,68508.0,0.16950713]
[1729310206772,0.433786,68509.0,68508.0,0.16950805]
[1729310206975,0.433786,68509.0,68508.0,0.08189929]
[1729310209690,0.433786,68509.0,68508.0,0.16950631]
[1729310213082,0.433786,68509.0,68508.0,0.08189929]
[1729310214689,0.433786,68509.0,68508.0,0.08187333]
[1729310217388,0.48593248,68509.0,68503.0,0.0638]
[1729310217691,0.072992,68504.0,68503.0,0.0638]
[1729310225498,0.072992,68504.0,68503.0,0.14570974]
[1729310227090,0.072992,68504.0,68503.0,0.24335552]
[1729310228098,0.072992,68504.0,68503.0,0.24332103]
[1729310232606,0.072992,68504.0,68503.0,0.0638]
[1729310237600,0.0001,68512.0,68504.0,0.072992]
[1729310237803,0.0001,68517.0,68510.0,0.3608]
[1729310238000,0.072975,68520.0,68516.0,0.3608]
[1729310238215,0.072975,68520.0,68517.0,0.103278]
[1729310239005,0.0001,68521.0,68517.0,0.103278]
[1729310239202,0.07526707,68518.0,68517.0,0.103278]
[1729310239511,0.07526707,68518.0,68517.0,0.0303]
[1729310240412,0.07526707,68518.0,68517.0,0.11136533]
[1729310242520,0.07526707,68518.0,68517.0,0.08106533]
[1729310242718,0.07526707,68518.0,68517.0,0.08109531]
[1729310243221,0.07526707,68518.0,68517.0,0.15395933]
[1729310245724,0.07526707,68518.0,68517.0,0.15395005]
[1729310247424,0.12809307,68518.0,68510.0,0.30987907]
[1729310247623,0.072984,68511.0,68510.0,0.30987907]
[1729310247818,0.12581,68511.0,68510.0,0.30987907]
[1729310249423,0.072984,68511.0,68510.0,0.30987907]
[1729310250532,0.072986,68509.0,68507.0,0.137688]
[1729310253331,0.072986,68509.0,68507.0,0.0647]
[1729310253637,0.072986,68509.0,68506.0,0.3609]
[1729310253638,0.05238726,68509.0,68506.0,0.3609]
[1729310253833,0.072988,68507.0,68506.0,0.3609]
[1729310254029,0.12537526,68507.0,68506.0,0.3609]
[1729310254527,0.48617526,68507.0,68506.0,0.0001]
[1729310255537,0.433788,68507.0,68506.0,0.08202943]
[1729310260243,0.072988,68507.0,68506.0,0.08202943]
[1729310262636,0.072988,68507.0,68506.0,0.0001]
[1729310269337,0.0995871,68507.0,68506.0,0.0001]
[1729310270539,0.0995871,68507.0,68506.0,0.17969535]
[1729310271835,0.0995871,68507.0,68506.0,0.0001]
[1729310272035,0.0995871,68507.0,68506.0,0.17969222]
[1729310276854,0.0995871,68507.0,68506.0,0.17962434]
[1729310280938,0.0995871,68507.0,68506.0,0.17979087]
[1729310282652,0.0995871,68507.0,68506.0,0.17982127]
[1729310285342,0.0995871,68507.0,68506.0,0.39545161]
[1729310285556,0.0995871,68507.0,68506.0,0.0001]
[1729310292659,0.0995871,68507.0,68506.0,0.39528967]
[1729310292848,0.0995871,68507.0,68506.0,0.28182307]
[1729310293053,0.0995871,68507.0,68506.0,0.17981688]
[1729310295062,0.0995871,68507.0,68506.0,0.17968766]
[1729310298652,0.0995871,68507.0,68506.0,0.39538381]
[1729310298855,0.0995871,68507.0,68506.0,0.17968766]
[1729310299671,0.0995871,68507.0,68506.0,0.28169385]
[1729310299962,0.0995871,68507.0,68506.0,0.17968766]
[1729310304770,0.0995871,68507.0,68506.0,0.18025121]
[1729310307663,0.0995871,68507.0,68506.0,0.0001]
[1729310314769,0.0995871,68507.0,68506.0,0.18028247]
[1729310319577,0.0995871,68507.0,68506.0,0.18027866]
[1729310322780,0.0995871,68507.0,68506.0,0.0001]
[1729310329783,0.0995871,68507.0,68506.0,0.18029528]
[1729310332988,1.1375071,68507.0,68506.0,0.0597033]
[1729310333178,1.1375071,68507.0,68501.0,0.10200619]
[1729310333179,0.6995871,68507.0,68501.0,8.6e-07]
[1729310333380,0.74666269,68502.0,68489.0,0.10200619]
[1729310333686,0.073009,68488.0,68487.0,0.10200619]
[1729310334187,0.3608,68491.0,68486.0,0.10200619]
[1729310334188,0.07301,68487.0,68486.0,0.10200619]
[1729310334384,0.07301,68487.0,68484.0,0.0628]
[1729310334385,0.3608,68491.0,68484.0,0.16480619]
[1729310334580,0.073012,68485.0,68484.0,0.0628]
[1729310337684,0.073012,68485.0,68484.0,0.10651525]
[1729310338392,0.073012,68485.0,68484.0,0.0628]
[1729310341085,0.073012,68485.0,68484.0,0.135813]
[1729310341284,0.073012,68485.0,68484.0,0.0628]
[1729310344189,0.073012,68485.0,68484.0,0.135813]
[1729310347395,0.073012,68485.0,68484.0,0.0628]
[1729310349894,0.073012,68485.0,68484.0,0.14317816]
[1729310350095,0.073012,68485.0,68484.0,0.08037816]
[1729310352103,0.073016,68481.0,68480.0,0.073016]
[1729310352299,0.073116,68481.0,68480.0,0.073016]
[1729310354915,0.073116,68481.0,68480.0,0.15340257]
[1729310357009,0.073116,68481.0,68480.0,0.15335979]
[1729310360311,0.073116,68481.0,68480.0,0.24925197]
[1729310360515,0.073116,68481.0,68480.0,0.61005197]
[1729310361910,0.073116,68481.0,68480.0,0.61032095]
[1729310362310,0.073116,68481.0,68480.0,0.46308563]
[1729310363014,0.3938,68490.0,68480.0,0.88806344]
[1729310363015,0.073012,68486.0,68480.0,0.88806344]
[1729310363210,0.073012,68486.0,68485.0,0.073012]
[1729310363412,0.073012,68486.0,68485.0,0.24951695]
[1729310366707,0.073012,68486.0,68485.0,0.24975867]
[1729310367714,0.073012,68486.0,68485.0,0.61055867]
[1729310368014,0.073012,68486.0,68485.0,0.24975867]
[1729310372119,0.073012,68486.0,68485.0,0.36130068]
[1729310373010,0.073012,68486.0,68485.0,0.46354676]
[1729310373312,0.073012,68486.0,68485.0,0.24975867]
[1729310374014,0.143012,68486.0,68485.0,0.24975867]
[1729310374919,0.073012,68486.0,68485.0,0.24975867]
[1729310375122,0.143012,68486.0,68485.0,0.24975867]
[1729310375321,0.143012,68486.0,68485.0,0.073012]
[1729310377511,0.143012,68486.0,68485.0,0.09955742]
[1729310383224,0.143012,68486.0,68485.0,0.27634758]
[1729310386520,0.143012,68486.0,68485.0,0.27637758]
[1729310386922,0.143012,68486.0,68485.0,0.49021556]
[1729310387123,0.143012,68486.0,68485.0,0.38797174]
[1729310387824,0.073012,68486.0,68485.0,0.38797174]
[1729310389213,0.073012,68486.0,68485.0,0.72222632]
[1729310390024,0.073012,68486.0,68485.0,0.46366891]
[1729310390220,0.12660365,68486.0,68485.0,0.02187174]
[1729310390419,0.12660365,68486.0,68485.0,0.073012]
[1729310396433,0.12616722,68486.0,68485.0,0.073012]
[1729310397335,0.073012,68486.0,68485.0,0.25045113]
[1729310401354,0.073012,68486.0,68485.0,0.61125113]
[1729310401750,0.073012,68486.0,68485.0,0.25045113]
[1729310405551,0.12613731,68486.0,68485.0,0.073012]
[1729310406354,0.12611595,68486.0,68485.0,0.073012]
[1729310407254,0.0001,68492.0,68491.0,0.073005]
[1729310407453,0.12623144,68492.0,68491.0,0.073005]
[1729310408461,0.05322744,68492.0,68491.0,0.073005]
[1729310408661,0.05322744,68492.0,68491.0,0.433805]
[1729310408864,0.0001,68494.0,68491.0,0.3872617]
[1729310409161,0.0001,68497.0,68496.0,0.073]
[1729310409361,0.0001,68497.0,68496.0,0.1052]
[1729310409751,0.0001,68497.0,68496.0,0.1352]
[1729310410452,0.073099,68497.0,68496.0,0.1352]
[1729310411960,0.3608,68504.0,68496.0,0.2052]
[1729310412157,0.433793,68504.0,68503.0,0.142993]
[1729310412466,0.433793,68504.0,68503.0,0.20141058]
[1729310414359,0.433793,68504.0,68503.0,0.142993]
[1729310415763,0.3608,68504.0,68503.0,0.142993]
[1729310416070,0.07299,68507.0,68506.0,0.072989]
[1729310416264,0.07299,68507.0,68506.0,0.142989]
[1729310427175,0.073088,68509.0,68508.0,0.072987]
[1729310427475,0.073088,68509.0,68506.0,0.07]
[1729310427476,0.12616528,68509.0,68506.0,0.07]
[1729310427671,0.05307728,68508.0,68506.0,0.07]
[1729310427973,0.05307728,68507.0,68506.0,0.142989]
[1729310428173,0.0001,68509.0,68506.0,0.4308]
[1729310428471,0.0001,68509.0,68508.0,0.072987]
[1729310432668,0.072988,68507.0,68506.0,0.36208]
[1729310432866,0.0701,68509.0,68505.0,0.0002]
[1729310433175,0.142989,68506.0,68505.0,0.0003]
[1729310434180,0.19548194,68506.0,68505.0,0.0003]
[1729310435472,0.142989,68506.0,68505.0,0.0003]
[1729310436776,0.142989,68506.0,68505.0,0.073291]
[1729310437379,0.142989,68506.0,68505.0,0.13170858]
[1729310439179,0.072989,68506.0,68505.0,0.13170858]
[1729310439386,0.142989,68506.0,68505.0,0.073291]
[1729310440278,0.072989,68506.0,68505.0,0.073291]
[1729310440474,0.142989,68506.0,68505.0,0.073291]
[1729310445076,0.142989,68506.0,68505.0,0.0003]
[1729310445483,0.142989,68506.0,68498.0,0.40466585]
[1729310445484,0.742989,68506.0,68498.0,0.0001]
[1729310445686,0.503797,68499.0,68498.0,0.0001]
[1729310450484,0.503797,68499.0,68498.0,0.0813698]
[1729310452398,0.503797,68499.0,68498.0,0.15422185]
[1729310452902,0.503797,68499.0,68498.0,0.0813698]
[1729310453293,0.433797,68499.0,68498.0,0.0813698]
[1729310453493,0.503797,68499.0,68498.0,0.15420889]
[1729310453897,0.433797,68499.0,68498.0,0.15420889]
[1729310454093,0.503797,68499.0,68498.0,0.15420889]
[1729310454292,0.503797,68499.0,68498.0,0.07293909]
[1729310456095,0.503797,68499.0,68498.0,0.0001]
[1729310457489,0.503797,68499.0,68498.0,0.04379108]
[1729310461190,0.503797,68499.0,68498.0,0.0001]
[1729310462398,0.433797,68499.0,68498.0,0.0001]
[1729310462800,0.503797,68499.0,68498.0,0.0001]
[1729310463099,0.433797,68499.0,68498.0,0.0001]
[1729310463411,0.503797,68499.0,68498.0,0.0001]
[1729310463996,0.433797,68499.0,68498.0,0.073098]
[1729310464293,0.433797,68499.0,68498.0,0.13135277]
[1729310464498,0.072997,68499.0,68498.0,0.073098]
[1729310465600,0.1253622,68499.0,68497.0,0.07]
[1729310465910,0.072997,68499.0,68498.0,0.072998]
[1729310466098,0.12536213,68499.0,68498.0,0.072998]
[1729310466407,0.12537878,68499.0,68498.0,0.072998]
[1729310470307,0.072998,68498.0,68497.0,0.07]
[1729310470495,0.12537978,68498.0,68497.0,0.07]
[1729310472607,0.072998,68498.0,68497.0,0.15185192]
[1729310472800,0.072998,68498.0,68497.0,0.22478747]
[1729310473203,0.072998,68498.0,68497.0,0.15185192]
[1729310475002,0.072998,68498.0,68497.0,0.15190555]
[1729310475510,0.072998,68498.0,68497.0,0.22490455]
[1729310476003,0.072998,68498.0,68497.0,0.15190555]
[1729310478706,0.072998,68498.0,68497.0,0.22490455]
[1729310479410,0.072998,68498.0,68497.0,0.31253092]
[1729310480201,0.072998,68498.0,68497.0,0.22490455]
[1729310480506,0.072998,68498.0,68497.0,0.31253092]
[1729310480707,0.072998,68498.0,68497.0,0.142999]
[1729310481103,0.12484144,68498.0,68497.0,0.142999]
[1729310481601,0.072998,68498.0,68497.0,0.142999]
[1729310481802,0.25357598,68498.0,68497.0,0.142999]
[1729310487713,0.072998,68498.0,68497.0,0.3126136]
[1729310489011,0.073197,68501.0,68500.0,0.072996]
[1729310489312,0.073197,68501.0,68500.0,0.15498423]
[1729310493221,0.073197,68501.0,68500.0,0.22498423]
[1729310493425,0.0002,68501.0,68500.0,0.31259371]
[1729310493821,0.0002,68501.0,68500.0,0.22498423]
[1729310494312,0.0002,68501.0,68500.0,0.31259535]
[1729310494823,0.0002,68501.0,68500.0,0.32240967]
[1729310495217,0.0002,68501.0,68500.0,0.22498423]
[1729310495419,0.0002,68501.0,68500.0,0.32237285]
[1729310495722,0.0002,68501.0,68500.0,0.07]
[1729310495919,0.11303973,68501.0,68500.0,0.07]
[1729310496121,0.18207326,68501.0,68500.0,0.142996]
[1729310496624,0.18207326,68501.0,68500.0,0.16900203]
[1729310497219,0.05241531,68501.0,68500.0,0.16900203]
[1729310497617,0.11253029,68501.0,68500.0,0.16900203]
[1729310498329,0.05241531,68501.0,68500.0,0.16900203]
[1729310499030,0.12541031,68501.0,68500.0,0.16900203]
[1729310500717,0.05241531,68501.0,68500.0,0.16900203]
[1729310500936,0.0002,68501.0,68500.0,0.16900203]
[1729310501217,0.06024095,68501.0,68500.0,0.16900203]
[1729310501418,0.18082685,68501.0,68500.0,0.16900203]
[1729310501631,0.11245626,68501.0,68500.0,0.1735669]
[1729310502220,0.11245626,68501.0,68500.0,0.1035669]
[1729310502527,0.11245626,68501.0,68500.0,0.16900203]
[1729310502725,0.0002,68501.0,68500.0,0.25106713]
[1729310503918,0.0002,68501.0,68500.0,0.25096464]
[1729310508829,0.0002,68501.0,68500.0,0.25097559]
[1729310510719,0.0002,68501.0,68500.0,0.16900203]
[1729310513437,0.0002,68501.0,68500.0,0.20220203]
[1729310517445,0.0002,68501.0,68500.0,0.2751188]
[1729310517831,0.0002,68501.0,68500.0,0.20220203]
[1729310518542,0.11188798,68501.0,68500.0,0.20220203]
[1729310520044,0.0001,68506.0,68505.0,0.072991]
[1729310520435,0.06009581,68506.0,68505.0,0.142991]
[1729310520630,0.0001,68506.0,68505.0,0.072991]
[1729310521034,0.06009581,68506.0,68505.0,0.072991]
[1729310525739,0.06009581,68506.0,68504.0,0.07]
[1729310525944,0.0001,68506.0,68505.0,0.32348669]
[1729310526652,0.0001,68506.0,68505.0,0.142991]
[1729310527150,0.0001,68506.0,68505.0,0.32402913]
[1729310529141,0.0001,68506.0,68505.0,0.22558283]
[1729310529341,0.0001,68506.0,68505.0,0.142991]
[1729310529646,0.0001,68506.0,68505.0,0.14755525]
[1729310530651,0.0001,68506.0,68505.0,0.142991]
[1729310531744,0.0001,68506.0,68505.0,0.1475552]
[1729310534442,0.05114971,68506.0,68505.0,0.1475552]
[1729310535451,0.0001,68506.0,68505.0,0.1475552]
[1729310535638,0.0001,68506.0,68505.0,0.142991]
[1729310535844,0.0001,68506.0,68505.0,0.14755517]
[1729310537348,0.05116156,68506.0,68505.0,0.14755517]
[1729310537652,0.12415056,68506.0,68505.0,0.07755517]
[1729310539951,0.05116156,68506.0,68505.0,0.07755517]
[1729310540152,0.0001,68506.0,68505.0,0.1602408]
[1729310541566,0.0001,68506.0,68505.0,0.24776242]
[1729310543062,0.0001,68506.0,68505.0,0.1602408]
[1729310543362,0.0001,68506.0,68505.0,0.24776263]
[1729310545357,0.0001,68506.0,68505.0,0.16024101]
[1729310546965,0.0001,68506.0,68505.0,0.16027367]
[1729310548165,0.0001,68506.0,68505.0,0.25889573]
[1729310550162,0.0001,68506.0,68505.0,0.32889573]
[1729310551163,0.0001,68506.0,68505.0,0.32433135]
[1729310551363,0.0001,68506.0,68505.0,0.44337576]
[1729310551562,0.0001,68506.0,68505.0,0.43107288]
[1729310551862,0.0001,68509.0,68508.0,0.072987]
[1729310552060,0.0001,68509.0,68508.0,0.39829724]
[1729310555162,0.0001,68509.0,68508.0,0.21755105]
[1729310555564,0.0001,68509.0,68508.0,0.21755089]
[1729310558775,0.032,68520.0,68508.0,0.14]
[1729310559072,0.032,68520.0,68519.0,0.142976]
[1729310559270,0.032,68520.0,68519.0,0.0918629]
[1729310559775,0.08397393,68520.0,68519.0,0.0918629]
[1729310560172,0.08397393,68520.0,68519.0,0.09642656]
[1729310562178,0.08397393,68520.0,68519.0,0.12296128]
[1729310563071,0.032,68520.0,68519.0,0.20512861]
[1729310564069,0.032,68520.0,68519.0,0.2051286]
[1729310565172,0.032,68520.0,68519.0,0.17403023]
[1729310565380,0.104975,68520.0,68519.0,0.17403023]
[1729310566363,0.174975,68520.0,68519.0,0.08216733]
[1729310566568,0.102,68520.0,68519.0,0.07287767]
[1729310566768,0.102,68520.0,68517.0,0.08038069]
[1729310567072,0.072977,68518.0,68517.0,0.073077]
[1729310568377,0.072977,68518.0,68517.0,0.14595467]
[1729310570075,0.072977,68518.0,68517.0,0.073077]
[1729310576178,0.032,68520.0,68519.0,0.072976]
[1729310576378,0.032,68520.0,68519.0,0.073076]
[1729310576575,0.08462411,68520.0,68519.0,0.073076]
[1729310578288,0.032,68520.0,68519.0,0.15432037]
[1729310578488,0.104975,68520.0,68519.0,0.15432037]
[1729310580882,0.104975,68520.0,68519.0,0.22432037]
[1729310581090,0.072971,68524.0,68523.0,0.072971]
[1729310581386,0.072971,68524.0,68523.0,0.22431537]
[1729310584588,0.072971,68524.0,68523.0,0.22428231]
[1729310585185,0.18696249,68524.0,68523.0,0.143071]
[1729310588882,0.12571927,68524.0,68523.0,0.143071]
[1729310589081,0.18705578,68524.0,68523.0,0.143071]
[1729310589286,0.18705578,68524.0,68523.0,0.0701]
[1729310589486,0.18698191,68524.0,68523.0,0.143071]
[1729310590085,0.18703535,68524.0,68523.0,0.143071]
[1729310590285,0.12572826,68524.0,68523.0,0.073071]
[1729310590599,0.1865392,68524.0,68523.0,0.073071]
[1729310592290,0.18608709,68524.0,68523.0,0.073071]
[1729310592795,0.18608709,68524.0,68523.0,0.0001]
[1729310593395,0.072971,68524.0,68523.0,0.0001]
[1729310598001,0.6,68524.0,68501.0,0.07]
[1729310598187,0.072989,68506.0,68504.0,0.072992]
[1729310598393,0.072989,68506.0,68505.0,0.36803629]
[1729310598898,0.072989,68506.0,68505.0,0.44102729]
[1729310599100,0.072989,68506.0,68505.0,0.52290156]
[1729310599488,0.072989,68506.0,68505.0,0.61041297]
[1729310599987,0.072989,68506.0,68505.0,0.16210156]
[1729310603393,0.072989,68506.0,68505.0,0.23496701]
[1729310604101,0.072989,68506.0,68505.0,0.15309274]
[1729310604500,0.072989,68506.0,68505.0,0.08022729]
[1729310615298,0.072989,68506.0,68505.0,0.16223173]
[1729310615703,0.072989,68506.0,68505.0,0.24960644]
[1729310616503,0.072989,68506.0,68505.0,0.16223173]
[1729310616915,0.072989,68506.0,68505.0,0.24960644]
[1729310617109,0.072989,68506.0,68505.0,0.16223173]
[1729310618408,0.072989,68506.0,68505.0,0.24960644]
[1729310619704,0.072989,68506.0,68505.0,0.16223173]
[1729310623428,0.072989,68506.0,68505.0,0.08022729]
[1729310630440,0.072989,68506.0,68505.0,0.2606744]
[1729310638331,0.072989,68506.0,68505.0,0.25017327]
[1729310641638,0.3609,68513.0,68505.0,0.08955849]
[1729310641938,0.072983,68512.0,68511.0,0.072983]
[1729310642136,0.072983,68512.0,68511.0,0.1553052]
[1729310643146,0.072983,68512.0,68511.0,0.15517252]
[1729310643539,0.3609,68513.0,68511.0,0.15517252]
[1729310643540,0.3609,68513.0,68512.0,0.072983]
[1729310643748,0.3609,68513.0,68512.0,0.15517252]
[1729310644047,0.0001,68513.0,68512.0,0.15517252]
[1729310644741,0.073082,68513.0,68512.0,0.15517252]
[1729310645436,0.073082,68513.0,68512.0,0.072983]
[1729310646549,0.12488149,68513.0,68512.0,0.072983]
[1729310647045,0.05188379,68513.0,68512.0,0.433783]
[1729310647239,0.0001,68513.0,68512.0,0.43834702]
[1729310647851,0.0001,68513.0,68512.0,1.03834702]
[1729310648048,0.38793298,68520.0,68519.0,0.072976]
[1729310648244,0.38793298,68520.0,68516.0,0.0001]
[1729310648550,0.00218979,68520.0,68519.0,0.433776]
[1729310648744,0.073068,68526.0,68525.0,0.072969]
[1729310648941,0.073068,68526.0,68525.0,0.073069]
[1729310649344,0.073068,68526.0,68525.0,0.136169]
[1729310653446,0.073068,68526.0,68525.0,0.17983394]
[1729310654855,0.073068,68526.0,68525.0,0.20676305]
[1729310655550,0.073068,68526.0,68525.0,0.16309811]
[1729310655946,0.073068,68526.0,68525.0,0.20676305]
[1729310657254,0.0001,68526.0,68525.0,0.56756305]
[1729310657548,0.0001,68526.0,68525.0,0.58227361]
[1729310657755,0.0001,68526.0,68525.0,0.52389811]
[1729310659653,0.0001,68526.0,68525.0,0.58205299]
[1729310660255,0.073068,68526.0,68525.0,0.55512388]
[1729310660646,0.073068,68526.0,68525.0,0.496969]
[1729310661351,0.0001,68526.0,68525.0,0.496969]
[1729310667648,0.0001,68526.0,68525.0,0.55512388]
[1729310668550,0.0001,68526.0,68525.0,0.496969]
[1729310673649,0.0001,68526.0,68525.0,0.56993838]
[1729310674153,0.073068,68526.0,68525.0,0.56993838]
[1729310674353,0.073068,68526.0,68525.0,0.496969]
[1729310674660,0.073068,68526.0,68525.0,0.65135798]
[1729310675745,0.18622366,68526.0,68525.0,0.496969]
[1729310677052,0.18627889,68526.0,68525.0,0.496969]
[1729310678160,0.18627889,68526.0,68525.0,0.424]
[1729310678358,0.18627889,68526.0,68525.0,0.496969]
[1729310683560,0.073068,68526.0,68525.0,0.57889078]
[1729310687067,0.073068,68526.0,68525.0,0.57892254]
[1729310687567,0.072968,68526.0,68525.0,0.57892254]
[1729310691263,0.072968,68526.0,68525.0,0.51582254]
[1729310691665,0.072968,68526.0,68525.0,0.51586086]
[1729310691861,0.072968,68526.0,68525.0,0.3609]
[1729310692363,0.072968,68526.0,68525.0,0.0001]
[1729310692768,0.104068,68526.0,68525.0,0.0001]
[1729310697567,0.21529851,68526.0,68525.0,0.0001]
[1729310697767,0.21526141,68526.0,68525.0,0.0001]
[1729310700174,0.21526141,68526.0,68525.0,0.073069]
[1729310700476,0.18416141,68526.0,68525.0,0.073069]
[1729310701070,0.18425414,68526.0,68525.0,0.073069]
[1729310705283,0.18432975,68526.0,68525.0,0.073069]
[1729310705788,0.072968,68526.0,68525.0,0.15529479]
[1729310709785,0.073067,68527.0,68526.0,0.072968]
[1729310710284,0.073067,68527.0,68526.0,0.15513404]
[1729310710780,0.073067,68527.0,68526.0,0.0001]
[1729310720695,0.073067,68527.0,68526.0,0.08211219]
[1729310721394,0.073067,68527.0,68526.0,0.15508019]
[1729310724992,0.073067,68527.0,68526.0,0.08218765]
[1729310727705,0.073067,68527.0,68526.0,0.05842661]
[1729310727895,0.073067,68527.0,68526.0,3.061e-05]
[1729310729203,0.073067,68527.0,68526.0,0.05842706]
[1729310729702,0.073067,68527.0,68526.0,3.061e-05]
[1729310736007,0.18448055,68527.0,68526.0,3.061e-05]
[1729310736999,0.54528055,68527.0,68526.0,3.061e-05]
[1729310740112,0.48542236,68527.0,68526.0,3.061e-05]
[1729310741611,0.072977,68518.0,68516.0,0.00724349]
[1729310741811,0.12453336,68517.0,68516.0,0.00724349]
[1729310742108,0.12453336,68517.0,68516.0,0.0001]
[1729310742506,0.12453336,68517.0,68512.0,0.43725225]
[1729310742507,0.11100834,68517.0,68514.0,0.00722504]
[1729310742707,0.07298,68515.0,68514.0,0.00722504]
[1729310743213,0.072977,68518.0,68513.0,0.0729368]
[1729310743214,0.072981,68514.0,68513.0,0.0729368]
[1729310743409,0.072977,68518.0,68512.0,0.00218925]
[1729310743605,0.072983,68512.0,68511.0,0.0729368]
[1729310743806,0.072983,68512.0,68511.0,0.15562471]
[1729310744510,0.072984,68511.0,68510.0,0.0729368]
[1729310744715,0.072984,68511.0,68510.0,0.15558928]
[1729310745306,0.072984,68511.0,68510.0,0.0729368]
[1729310745626,0.072985,68510.0,68509.0,0.0729368]
[1729310745809,0.072985,68510.0,68509.0,0.15563636]
[1729310746011,0.072985,68510.0,68509.0,0.0729368]
[1729310746409,0.0327,68513.0,68506.0,0.072989]
[1729310746410,0.02617659,68512.0,68508.0,0.0731368]
[1729310746616,0.072986,68509.0,68508.0,0.0731368]
[1729310746803,0.072986,68509.0,68508.0,0.15581529]
[1729310747416,0.072986,68509.0,68508.0,0.0731368]
[1729310747606,0.072986,68509.0,68508.0,0.0002]
[1729310747807,0.072986,68509.0,68508.0,0.0731368]
[1729310748505,0.072986,68509.0,68508.0,0.0002]
[1729310749019,0.072986,68509.0,68508.0,0.0731368]
[1729310749510,0.072986,68509.0,68508.0,0.0002]
[1729310750517,0.072986,68509.0,68508.0,0.0731368]
[1729310750810,0.09928842,68513.0,68512.0,0.072983]
[1729310751018,0.072983,68513.0,68512.0,0.0001]
[1729310751521,0.072983,68513.0,68512.0,0.073083]
[1729310756922,0.072983,68513.0,68512.0,0.0996787]
[1729310758925,0.072983,68513.0,68512.0,0.18263338]
[1729310759110,0.072983,68513.0,68512.0,0.18263339]
[1729310764623,0.072983,68513.0,68512.0,0.15603769]
[1729310765417,0.072983,68513.0,68512.0,0.24348903]
[1729310765821,0.1236766,68513.0,68512.0,0.073083]
[1729310772821,0.12379783,68513.0,68512.0,0.073083]
[1729310773925,0.072983,68513.0,68512.0,0.24351524]
[1729310774524,0.072983,68513.0,68512.0,0.1560639]
[1729310775230,0.072983,68513.0,68512.0,0.25489852]
[1729310775916,0.072983,68513.0,68512.0,0.1560639]
[1729310776517,0.072983,68513.0,68512.0,0.25491926]
[1729310776715,0.0001,68516.0,68512.0,0.18193626]
[1729310776919,0.073079,68516.0,68515.0,0.43388]
[1729310777227,0.0001,68516.0,68515.0,0.61522406]
[1729310778222,0.073079,68516.0,68515.0,0.61522406]
[1729310778422,0.0001,68516.0,68515.0,0.615162]
[1729310779827,0.0001,68516.0,68515.0,1.215162]
[1729310780934,0.0001,68516.0,68515.0,1.1166114]
[1729310782632,0.0001,68516.0,68515.0,1.20412592]
[1729310783335,0.0001,68516.0,68515.0,0.5166114]
[1729310784635,0.0001,68516.0,68515.0,0.60412592]
[1729310787028,0.0001,68516.0,68515.0,0.60387429]
[1729310788830,0.11097521,68516.0,68515.0,0.38276761]
[1729310789140,0.11097521,68516.0,68515.0,0.3609]
[1729310789440,0.11097521,68516.0,68515.0,0.43388]
[1729310791538,0.05140625,68516.0,68515.0,0.43388]
[1729310791843,0.0001,68519.0,68518.0,0.072977]
[1729310792036,0.0001,68520.0,68518.0,0.0001]
[1729310792236,0.0001,68520.0,68519.0,0.073076]
[1729310795838,0.0001,68520.0,68519.0,0.15602586]
[1729310796243,0.0001,68521.0,68520.0,0.072975]
[1729310796537,0.0001,68521.0,68520.0,0.28619432]
[1729310796743,0.0001,68521.0,68520.0,0.31909432]
[1729310796933,0.0001,68521.0,68520.0,0.31907142]
[1729310797438,0.0001,68521.0,68520.0,0.31910503]
[1729310798535,0.0001,68521.0,68520.0,0.22021277]
[1729310798944,0.0001,68521.0,68520.0,0.31909874]
[1729310803939,0.0001,68521.0,68520.0,0.137275]
[1729310807343,0.0001,68521.0,68520.0,0.498075]
[1729310808456,0.0001,68524.0,68523.0,0.072971]
[1729310808639,0.0001,68524.0,68523.0,0.073071]
[1729310810951,0.0001,68524.0,68523.0,0.25506005]
[1729310816548,0.0001,68524.0,68523.0,0.25502657]
[1729310819057,0.0001,68524.0,68523.0,0.073071]
[1729310825848,0.0001,68524.0,68523.0,0.36980464]